bitfinex/quotes_ETHUSD_20240602
["timestamp","ask_amount","ask_price","bid_price","bid_amount"]
[1717367233407,2.63651,3792.9,3792.2,2.4489]
[1717367233614,2.63651,3792.9,3792.5,0.03856863]
[1717367233909,2.63651,3792.9,3792.6,0.03856863]
[1717367234064,2.63651,3792.9,3792.2,2.4489]
[1717367234266,2.63651,3792.9,3792.3,0.03856863]
[1717367237210,2.63651,3792.9,3792.3,0.38897196]
[1717367241222,2.63651,3792.9,3792.4,2.2765]
[1717367241630,2.63651,3792.9,3792.5,0.03848327]
[1717367246462,2.63651,3792.9,3792.1,2.3063]
[1717367246658,2.63651,3792.9,3791.9,2.63718]
[1717367246659,2.63651,3792.9,3792.6,0.03848327]
[1717367246988,2.63651,3792.9,3792.7,0.03842038]
[1717367247332,2.63651,3792.9,3792.5,2.4238]
[1717367247534,2.63651,3792.9,3792.0,2.4238]
[1717367247775,2.63651,3792.9,3792.6,0.03842038]
[1717367247929,2.63651,3792.9,3792.0,2.735218]
[1717367247930,2.63651,3792.9,3792.0,2.4238]
[1717367248129,2.63651,3792.9,3792.7,0.03842038]
[1717367248359,2.63651,3792.9,3792.0,2.4238]
[1717367248628,2.63651,3792.9,3792.8,0.03813738]
[1717367248831,2.63681,3792.5,3791.8,2.4123]
[1717367249383,2.63681,3792.5,3791.9,0.03813738]
[1717367250172,2.63681,3792.5,3791.8,2.4123]
[1717367251594,2.63699,3792.3,3791.5,2.3086]
[1717367251872,3.11399,3792.3,3791.5,2.3086]
[1717367252047,3.11399,3792.3,3791.6,0.03563998]
[1717367252670,0.477,3792.1,3791.6,0.03563998]
[1717367252840,3.11399,3792.3,3791.5,2.3086]
[1717367253376,3.11399,3792.3,3791.6,0.03563998]
[1717367257392,2.63715,3792.0,3791.6,0.03563998]
[1717367257682,2.63715,3792.0,3791.2,2.7385]
[1717367258028,2.63715,3792.0,3791.3,0.03563998]
[1717367258432,2.63715,3792.0,3791.3,2.67323998]
[1717367262127,2.63693,3792.3,3791.4,2.3094]
[1717367262333,3.11393,3792.3,3791.4,2.855364]
[1717367262659,3.11393,3792.3,3791.5,0.03579721]
[1717367265131,2.63715,3792.0,3791.5,0.03579721]
[1717367265972,2.63715,3792.0,3791.2,2.2827]
[1717367266329,2.63715,3792.0,3791.3,0.03579721]
[1717367269846,2.63735,3791.7,3791.3,0.03579721]
[1717367270051,3.11435,3791.7,3790.9,4.96152]
[1717367270400,3.11435,3791.7,3791.0,0.03579721]
[1717367271472,2.63711,3792.1,3791.1,2.63775]
[1717367271665,2.63723,3791.9,3791.2,0.03479928]
[1717367275096,2.63739,3791.7,3791.2,0.03479928]
[1717367275384,2.63739,3791.7,3790.9,2.3237]
[1717367275564,2.63739,3791.7,3791.3,0.03479928]
[1717367275883,2.63739,3791.7,3790.9,2.3237]
[1717367276376,2.63739,3791.7,3791.0,0.03479928]
[1717367278393,2.63739,3791.7,3791.0,0.58214321]
[1717367282988,2.4048,3791.6,3791.0,0.58214321]
[1717367283295,2.4048,3791.6,3791.0,0.03479928]
[1717367283497,2.4048,3791.6,3790.8,2.63794]
[1717367283677,2.4048,3791.6,3790.9,0.03478578]
[1717367288580,2.6375,3791.5,3790.9,0.03478578]
[1717367288906,2.6375,3791.5,3790.6,2.768]
[1717367288907,3.18943,3791.5,3790.6,2.768]
[1717367289110,2.6375,3791.5,3790.6,2.768]
[1717367289322,2.6375,3791.5,3790.7,0.03525302]
[1717367291618,0.477,3791.2,3790.7,0.03525302]
[1717367291910,0.541988,3791.1,3790.3,2.488]
[1717367292113,2.3052,3791.0,3790.4,0.03530246]
[1717367292619,2.63789,3790.9,3790.4,0.03530246]
[1717367292918,0.477,3790.8,3789.8,2.4715]
[1717367293074,0.477,3790.8,3789.9,0.03530246]
[1717367293271,0.477,3790.8,3789.8,3.07151743]
[1717367294108,9.5752,3791.0,3789.8,3.07151743]
[1717367294313,2.63803,3790.7,3789.9,0.03530246]
[1717367294880,2.63803,3790.7,3789.9,0.51230246]
[1717367299221,2.63803,3790.7,3789.9,0.03530246]
[1717367299422,2.63803,3790.7,3789.9,0.51230246]
[1717367301542,2.63803,3790.7,3789.9,0.03530246]
[1717367302164,2.63803,3790.7,3789.9,0.69885188]
[1717367312230,2.63839,3790.2,3789.9,0.03530246]
[1717367312443,3.11539,3790.2,3789.9,0.03530246]
[1717367312662,3.11539,3790.2,3789.4,2.4713]
[1717367312663,0.477,3790.0,3789.4,2.4713]
[1717367312957,3.11557,3790.0,3789.4,2.4713]
[1717367313155,3.11557,3790.0,3789.5,0.03506815]
[1717367313662,3.11557,3790.0,3789.4,2.4713]
[1717367313824,3.11557,3790.0,3789.6,0.03506815]
[1717367314021,3.11557,3790.0,3789.4,2.4713]
[1717367314546,2.63857,3790.0,3789.5,0.03506815]
[1717367314748,2.63857,3790.0,3789.4,2.4713]
[1717367314951,2.63857,3790.0,3789.5,0.03506815]
[1717367315447,2.63857,3790.0,3789.4,2.4713]
[1717367315621,2.63857,3790.0,3789.6,0.03506815]
[1717367315826,2.63857,3790.0,3789.4,2.4713]
[1717367316034,2.63857,3790.0,3789.7,0.03506815]
[1717367316237,2.63857,3790.0,3789.4,2.4713]
[1717367316440,2.63857,3790.0,3789.8,0.03506815]
[1717367316636,2.63857,3790.0,3789.4,2.4713]
[1717367316637,2.950127,3790.0,3789.4,2.4713]
[1717367316866,2.950127,3790.0,3789.9,0.03506815]
[1717367317039,2.950127,3790.0,3789.4,2.4713]
[1717367317485,3.427127,3790.0,3789.5,0.03537826]
[1717367317777,3.11557,3790.0,3789.1,2.3007]
[1717367318073,3.11557,3790.0,3789.6,0.03537826]
[1717367318287,3.11557,3790.0,3789.1,2.3007]
[1717367318435,3.11557,3790.0,3789.7,0.03537826]
[1717367318757,0.557887,3789.9,3789.8,0.03537826]
[1717367319260,0.557887,3789.9,3789.1,2.3007]
[1717367319465,3.11557,3790.0,3789.1,2.3007]
[1717367319668,3.11557,3790.0,3789.2,0.03537826]
[1717367320164,2.63857,3790.0,3789.2,0.03537826]
[1717367322366,3.11557,3790.0,3789.2,0.03537826]
[1717367336257,2.63857,3790.0,3789.2,0.51237826]
[1717367337598,2.4633,3790.1,3789.2,3.69662609]
[1717367337893,2.63832,3790.3,3789.5,2.3063]
[1717367338410,2.63832,3790.3,3789.6,0.51280523]
[1717367338556,2.63832,3790.3,3789.7,2.4725]
[1717367338903,2.63832,3790.3,3789.8,0.0357513]
[1717367341387,2.63811,3790.6,3789.8,0.0357513]
[1717367341628,7.27,3790.8,3790.3,2.6383]
[1717367341765,2.63769,3791.2,3790.3,3.1153]
[1717367341960,2.63769,3791.2,3790.7,0.477]
[1717367342156,2.63769,3791.2,3790.5,0.477]
[1717367342363,2.63769,3791.2,3790.5,2.8034]
[1717367342562,9.6592,3791.3,3790.6,2.67363454]
[1717367342758,7.27,3791.3,3790.7,0.477]
[1717367343269,7.27,3791.3,3791.1,0.477]
[1717367343453,7.27,3791.9,3791.0,2.63781]
[1717367343657,7.27,3791.9,3791.2,0.03522101]
[1717367343893,7.27,3791.9,3791.0,2.63781]
[1717367344302,0.477,3791.8,3791.0,2.63781]
[1717367344612,1.282117,3791.7,3791.0,2.63781]
[1717367346407,1.282117,3791.7,3791.1,2.4964]
[1717367346773,7.27,3791.9,3791.2,3.14965642]
[1717367347174,7.27,3791.9,3791.2,3.11466]
[1717367347375,2.63717,3792.0,3791.2,3.11466]
[1717367347586,22.1478,3792.3,3791.2,3.11466]
[1717367347801,0.477,3792.2,3791.2,3.11466]
[1717367348082,1.758166,3792.2,3791.3,0.03492007]
[1717367348471,1.758166,3792.2,3791.2,3.11466]
[1717367349186,1.758166,3792.2,3791.2,2.63766]
[1717367349522,1.758166,3792.2,3791.2,3.11466]
[1717367349723,7.27,3792.3,3791.5,2.63741]
[1717367349931,7.27,3792.3,3791.6,0.477]
[1717367350293,7.27,3792.3,3791.5,2.63741]
[1717367350491,7.747,3792.3,3791.5,2.63741]
[1717367353238,2.637,3792.2,3791.5,2.63741]
[1717367353393,2.637,3792.2,3791.4,0.477]
[1717367353595,2.637,3792.2,3791.5,0.03394963]
[1717367353596,2.9095,3792.1,3791.5,0.03394963]
[1717367353797,2.9095,3792.1,3791.1,5.61113]
[1717367354209,2.9095,3792.1,3791.2,0.03394963]
[1717367354728,2.4325,3792.1,3791.2,0.03394963]
[1717367354933,2.63713,3792.0,3791.2,0.03394963]
[1717367355220,1.135503,3791.9,3791.2,0.03394963]
[1717367355409,1.135503,3791.9,3790.9,2.4342]
[1717367355609,2.63731,3791.8,3791.3,0.03394963]
[1717367355843,2.63731,3791.8,3790.9,2.4342]
[1717367356152,2.63731,3791.8,3791.4,0.03394963]
[1717367356347,2.63731,3791.8,3790.9,2.4342]
[1717367356649,2.63731,3791.8,3790.9,2.98912]
[1717367356853,2.63741,3791.6,3791.0,0.03394963]
[1717367357057,2.63741,3791.6,3790.7,2.638]
[1717367357262,2.63741,3791.6,3791.1,0.03394963]
[1717367357406,2.63741,3791.6,3790.7,2.638]
[1717367357612,2.63741,3791.6,3791.2,0.03394963]
[1717367357960,3.0147013,3791.6,3790.7,2.638]
[1717367358139,2.63741,3791.6,3791.3,0.03394963]
[1717367358452,2.63741,3791.6,3791.4,0.03394963]
[1717367358816,2.63741,3791.6,3790.7,2.638]
[1717367359010,2.63741,3791.6,3791.5,0.03394963]
[1717367359227,2.63741,3791.6,3790.7,2.638]
[1717367359516,2.63741,3791.6,3790.7,3.48217]
[1717367359713,2.63741,3791.6,3790.8,0.03394963]
[1717367366463,2.2737,3791.5,3790.8,0.03394963]
[1717367375498,2.63741,3791.6,3790.9,2.63786]
[1717367375676,2.63741,3791.6,3790.9,2.67200723]
[1717367376162,2.63741,3791.6,3790.9,3.14900723]
[1717367377067,2.63741,3791.6,3790.9,3.78099495]
[1717367377267,7.27,3791.9,3791.3,2.63758]
[1717367377626,7.27,3791.9,3791.4,0.477]
[1717367377929,7.27,3791.9,3791.4,0.51126849]
[1717367381733,2.63699,3792.2,3791.4,0.51126849]
[1717367382240,2.63699,3792.2,3791.4,0.477]
[1717367385156,2.2665,3792.3,3791.5,3.191578]
[1717367385365,7.27,3792.4,3791.7,0.477]
[1717367385509,7.27,3792.4,3791.6,2.338]
[1717367385938,7.747,3792.4,3791.6,2.338]
[1717367386651,7.747,3792.4,3791.7,0.03385084]
[1717367389161,2.63694,3792.3,3791.7,0.03385084]
[1717367390644,2.63694,3792.3,3791.6,2.338]
[1717367391044,2.63694,3792.3,3791.7,0.03385084]
[1717367393457,2.63694,3792.3,3791.7,0.63789372]
[1717367395628,2.63694,3792.3,3791.7,0.03385084]
[1717367395972,2.63694,3792.3,3791.6,2.338]
[1717367408936,2.63694,3792.3,3791.8,0.477]
[1717367409136,2.63694,3792.3,3791.6,2.815]
[1717367410096,7.27,3792.4,3791.8,0.477]
[1717367410297,7.27,3792.4,3792.1,2.476]
[1717367414002,2.6365,3792.9,3792.1,2.476]
[1717367414221,2.6365,3792.9,3792.2,2.63696]
[1717367414369,7.27,3793.0,3792.2,3.11396]
[1717367414584,7.27,3793.0,3792.5,2.2961]
[1717367414806,2.63631,3793.2,3792.5,2.2961]
[1717367415201,0.539521,3793.1,3792.5,2.2961]
[1717367417590,0.539521,3793.1,3792.6,0.03320883]
[1717367417993,2.63631,3793.2,3792.6,0.03320883]
[1717367418527,2.63631,3793.2,3792.5,2.2961]
[1717367419296,7.27,3793.5,3793.0,2.2747]
[1717367422131,7.27,3793.5,3793.0,2.7517]
[1717367422307,7.27,3793.5,3793.1,0.03307867]
[1717367422795,2.63608,3793.6,3793.1,0.03307867]
[1717367423435,2.13608,3793.6,3793.1,0.03307867]
[1717367423735,2.13608,3793.6,3793.0,2.7517]
[1717367423894,2.13608,3793.6,3793.0,3.290517]
[1717367424093,2.13608,3793.6,3793.1,0.03294405]
[1717367424292,7.27,3793.9,3793.1,0.03294405]
[1717367424530,7.27,3793.9,3793.1,2.63635]
[1717367424869,7.27,3793.9,3793.2,0.50997995]
[1717367425047,7.27,3793.9,3793.3,0.5959847]
[1717367425566,7.27,3793.9,3793.4,2.39417995]
[1717367435890,19.72,3794.3,3793.4,2.39417995]
[1717367436185,19.72,3794.3,3793.7,2.8969]
[1717367436186,7.27,3794.3,3793.7,2.8969]
[1717367436337,7.27,3794.3,3793.8,0.553293]
[1717367436538,7.27,3794.3,3793.9,0.03270171]
[1717367436793,2.63534,3794.6,3793.9,0.03270171]
[1717367437144,2.63534,3794.6,3793.8,0.553293]
[1717367437740,2.63552,3794.4,3793.7,2.4199]
[1717367437943,2.63566,3794.2,3793.8,0.03270171]
[1717367438205,0.477,3794.2,3793.2,2.63628]
[1717367438496,0.477,3794.0,3793.9,0.03249085]
[1717367438661,0.477,3794.0,3793.2,2.63628]
[1717367439194,2.2536,3794.4,3793.3,0.03249085]
[1717367439195,0.477,3794.2,3793.3,0.03249085]
[1717367439343,2.63579,3794.0,3793.4,0.31457708]
[1717367439542,2.63579,3794.0,3793.5,2.2764]
[1717367439810,2.63579,3794.0,3793.6,0.03249085]
[1717367441650,2.63545,3794.5,3793.6,0.50949085]
[1717367443182,2.63545,3794.5,3793.6,0.03249085]
[1717367443592,2.63558,3794.3,3793.6,0.03249085]
[1717367445404,2.63558,3794.3,3793.7,0.03249085]
[1717367445891,2.63558,3794.3,3793.5,4.91242]
[1717367446056,2.63558,3794.3,3793.8,0.03249085]
[1717367446391,2.63558,3794.3,3793.9,0.03249085]
[1717367446701,2.63558,3794.3,3793.5,5.38942]
[1717367446993,2.63558,3794.3,3793.5,5.95981971]
[1717367447164,2.63558,3794.3,3793.6,0.03249085]
[1717367448014,2.63574,3794.0,3793.6,0.03249085]
[1717367454171,2.63554,3794.3,3793.6,0.03249085]
[1717367454364,2.63554,3794.3,3793.7,2.3297]
[1717367454562,2.63554,3794.3,3793.8,0.03267478]
[1717367454809,2.63554,3794.3,3793.7,2.3297]
[1717367455043,2.63554,3794.3,3793.9,0.03267478]
[1717367455243,2.63554,3794.3,3793.9,0.26769339]
[1717367455477,2.63554,3794.3,3794.0,0.03267478]
[1717367456096,2.63554,3794.3,3793.7,2.3297]
[1717367456406,2.63554,3794.3,3793.8,0.03267478]
[1717367456609,2.63554,3794.3,3793.7,2.3297]
[1717367456841,2.63554,3794.3,3793.9,0.03267478]
[1717367457001,2.63554,3794.3,3793.8,0.31212591]
[1717367457203,2.63554,3794.3,3793.9,0.03267478]
[1717367461835,7.27,3794.8,3793.9,0.03267478]
[1717367462036,2.4243,3795.7,3794.5,0.477]
[1717367462037,0.56974206,3794.7,3794.5,0.477]
[1717367462409,0.56971012,3795.1,3794.7,2.6352]
[1717367462544,15.08452,3795.8,3794.9,0.477]
[1717367462545,7.27,3795.6,3794.9,0.477]
[1717367462862,7.27,3795.6,3795.0,2.2828]
[1717367463415,2.7607553,3795.5,3795.1,0.03199736]
[1717367463619,0.477,3795.2,3795.1,0.03199736]
[1717367463934,0.477,3795.2,3793.6,2.2828]
[1717367463935,2.63527,3794.7,3793.6,2.2828]
[1717367464244,0.477,3794.4,3793.7,0.52387936]
[1717367464466,3.11247,3794.4,3793.7,0.52387936]
[1717367464621,2.63547,3794.4,3793.7,0.491882]
[1717367464822,0.477,3794.3,3793.8,0.03199736]
[1717367465020,2.6357,3794.1,3793.8,0.03199736]
[1717367465383,2.89927,3794.1,3793.1,2.7598]
[1717367465522,2.6357,3794.1,3793.2,0.03199736]
[1717367466671,0.477,3794.0,3793.2,0.03199736]
[1717367466864,2.6357,3794.1,3793.3,0.54281774]
[1717367467359,2.6357,3794.1,3793.4,0.03199736]
[1717367470295,3.1127,3794.1,3793.4,0.03199736]
[1717367470860,2.6359,3793.8,3793.4,0.03199736]
[1717367471389,2.6359,3793.8,3793.1,2.2828]
[1717367471598,2.6359,3793.8,3793.2,0.03229341]
[1717367472557,3.11312,3793.5,3793.2,0.03229341]
[1717367472791,2.63612,3793.5,3792.7,2.4753]
[1717367472999,2.63612,3793.5,3792.8,0.03247735]
[1717367473204,2.63612,3793.5,3792.9,0.51444674]
[1717367473657,2.63612,3793.5,3793.0,0.03247735]
[1717367476575,2.63612,3793.5,3792.7,2.4753]
[1717367476904,2.63612,3793.5,3792.8,0.03247735]
[1717367480827,2.63623,3793.3,3792.8,0.03247735]
[1717367481317,2.63623,3793.3,3792.5,2.2561]
[1717367481496,2.63623,3793.3,3792.9,0.03247735]
[1717367481683,2.63623,3793.3,3792.6,0.27331]
[1717367482313,2.63623,3793.3,3792.7,0.03247735]
[1717367483328,2.2679,3793.4,3792.7,0.03247735]
[1717367483329,2.63657,3792.8,3792.7,0.03247735]
[1717367483548,5.350927,3792.8,3792.7,0.03247735]
[1717367483832,5.03957,3792.8,3791.9,2.3322]
[1717367483982,0.477,3792.6,3791.9,2.3322]
[1717367484310,0.477,3792.6,3792.0,0.03279595]
[1717367484677,0.477,3792.6,3792.0,0.58279595]
[1717367485244,2.63692,3792.3,3792.0,0.03279595]
[1717367485608,2.63692,3792.3,3791.3,0.477]
[1717367485946,2.63692,3792.3,3791.4,0.30768212]
[1717367486705,7.27,3792.6,3791.5,3.18746]
[1717367486903,7.27,3792.6,3791.7,0.477]
[1717367487106,7.27,3792.6,3791.8,0.94924195]
[1717367488639,2.63678,3792.5,3791.8,0.94924195]
[1717367488820,3.11378,3792.5,3791.8,0.94924195]
[1717367489025,0.477,3792.4,3791.8,0.94924195]
[1717367490447,2.63697,3792.3,3791.8,0.03279595]
[1717367490663,2.63713,3792.0,3791.8,0.03279595]
[1717367490824,3.425543,3792.0,3790.9,0.477]
[1717367491013,3.425543,3792.0,3791.0,0.03279595]
[1717367491014,0.477,3791.8,3791.0,0.03279595]
[1717367491220,0.477,3791.8,3790.9,2.63787]
[1717367491416,3.11413,3792.0,3791.0,0.03279595]
[1717367491611,3.11413,3792.0,3791.1,0.31476659]
[1717367491858,2.63713,3792.0,3791.1,0.31476659]
[1717367492052,7.27,3792.2,3791.3,2.3377]
[1717367492773,7.27,3792.2,3791.7,2.63732]
[1717367492919,7.27,3792.2,3791.4,0.55]
[1717367492920,12.45,3792.6,3792.0,2.3377]
[1717367493315,12.45,3792.6,3792.1,0.58337498]
[1717367493821,7.27,3793.1,3792.2,2.63698]
[1717367494015,7.27,3793.1,3792.4,2.63684]
[1717367494423,7.27,3793.1,3792.5,0.55]
[1717367494618,7.27,3793.1,3792.6,0.03360837]
[1717367494834,7.27,3793.1,3792.5,0.55]
[1717367495131,7.27,3793.1,3792.6,2.63671]
[1717367495348,7.27,3793.1,3792.7,0.318671]
[1717367495658,7.27,3793.1,3792.8,0.03335252]
[1717367496016,7.27,3793.1,3792.7,0.318671]
[1717367496217,7.27,3793.1,3792.8,2.33660892]
[1717367496421,2.4958,3793.9,3792.8,2.33660892]
[1717367496422,7.27,3793.7,3793.2,2.63626]
[1717367496651,2.63577,3794.0,3793.3,0.263626]
[1717367496815,2.63577,3794.0,3793.3,0.29675864]
[1717367497021,2.63577,3794.0,3793.3,0.03313264]
[1717367499482,2.63603,3793.6,3793.3,0.03313264]
[1717367499623,5.12993,3793.6,3793.3,0.03313264]
[1717367499824,2.63636,3793.2,3792.0,2.63709]
[1717367500052,2.4939,3793.6,3792.1,0.03306534]
[1717367500053,7.27,3793.3,3792.1,0.03306534]
[1717367501362,2.63644,3793.0,3792.1,0.03306534]
[1717367502568,2.63644,3793.0,3792.1,0.58306534]
[1717367504256,7.27,3793.3,3792.2,2.63697]
[1717367504634,7.27,3793.3,3792.3,0.03313703]
[1717367504835,0.99062,3793.2,3792.3,0.03313703]
[1717367505284,0.99062,3793.2,3792.4,2.63682]
[1717367505774,0.99062,3793.2,3792.5,0.03311458]
[1717367507449,0.99062,3793.2,3792.6,2.63665]
[1717367507840,7.27,3793.3,3792.7,0.03309214]
[1717367509128,7.27,3793.3,3792.8,2.63656]
[1717367509330,9.90588,3793.8,3792.8,2.63656]
[1717367509727,2.63611,3793.5,3792.4,2.6368]
[1717367509929,0.263611,3793.4,3792.4,2.6368]
[1717367510358,0.263611,3793.4,3792.5,0.03291263]
[1717367512634,2.63626,3793.3,3792.5,0.03291263]
[1717367526257,2.63602,3793.6,3792.6,2.63668]
[1717367526457,2.63602,3793.6,3792.7,0.03311459]
[1717367526885,3.859962,3793.6,3792.7,0.03311459]
[1717367528954,3.859962,3793.6,3792.8,2.63656]
[1717367529379,0.56990183,3793.5,3792.8,2.63656]
[1717367529591,0.56990183,3793.5,3792.9,0.03311459]
[1717367530384,3.859962,3793.6,3792.9,0.03311459]
[1717367531117,7.27,3793.8,3793.0,2.63642]
[1717367531255,0.56989405,3793.7,3793.0,2.63642]
[1717367531460,7.27,3793.8,3793.1,0.03311459]
[1717367531661,7.27,3793.8,3793.3,2.63622]
[1717367532802,7.27,3793.8,3793.4,0.03311459]
[1717367536356,7.27,3793.8,3793.4,0.54990805]
[1717367537902,7.27,3793.8,3793.5,2.63607]
[1717367538264,7.27,3793.8,3793.6,0.03235174]
[1717367542448,7.27,3793.8,3793.7,5.00764]
[1717367542785,7.27,3793.8,3793.7,5.0399738]
[1717367543017,7.27,3793.8,3793.7,5.59565053]
[1717367543240,7.27,3794.5,3793.7,5.59565053]
[1717367543494,7.27,3794.5,3793.7,5.56331673]
[1717367547594,9.90546,3794.5,3793.7,5.56331673]
[1717367547999,0.476,3794.4,3793.8,0.03208704]
[1717367552237,9.90546,3794.5,3793.8,0.59162742]
[1717367552553,0.476,3794.3,3793.8,0.03208704]
[1717367552735,2.276,3794.4,3793.4,2.2899]
[1717367552896,0.476,3794.2,3793.4,2.2899]
[1717367553225,0.476,3794.2,3793.5,0.03213639]
[1717367553406,0.476,3794.2,3793.6,2.86821364]
[1717367553841,0.476,3794.2,3793.7,0.03213639]
[1717367555949,0.476,3794.2,3793.3,2.63621]
[1717367556113,0.476,3794.2,3793.8,0.03213639]
[1717367556310,0.476,3794.2,3793.3,3.176421]
[1717367556558,0.476,3794.2,3793.4,0.03213639]
[1717367559540,2.4841,3793.9,3793.4,0.03213639]
[1717367559727,0.29601,3793.8,3793.4,0.03213639]
[1717367559916,0.77201,3793.8,3793.4,0.03213639]
[1717367560253,0.476,3793.8,3792.9,2.63645]
[1717367560551,3.11193,3793.8,3792.9,2.63645]
[1717367560749,3.11193,3793.8,3793.0,0.03221715]
[1717367560933,3.11193,3793.8,3793.0,0.89165387]
[1717367561316,2.63593,3793.8,3793.0,0.89165387]
[1717367565075,2.63593,3793.8,3793.1,2.63635]
[1717367565262,2.4841,3793.9,3793.1,2.63635]
[1717367565632,2.4841,3793.9,3793.2,0.03221715]
[1717367565940,9.90567,3794.1,3793.3,2.63617]
[1717367566138,10.38167,3794.1,3793.3,5.09057]
[1717367566548,10.38167,3794.1,3793.4,0.03221715]
[1717367566769,3.11167,3794.1,3793.4,0.03221715]
[1717367568171,7.27,3794.5,3793.6,0.476]
[1717367568341,7.27,3794.5,3793.9,2.63574]
[1717367568342,0.56979226,3794.4,3793.9,2.63574]
[1717367568541,7.27,3794.5,3794.0,2.4544]
[1717367568875,7.27,3794.5,3794.0,2.48657678]
[1717367570867,7.27,3794.5,3794.0,2.96257678]
[1717367571046,7.27,3794.5,3794.1,0.55983168]
[1717367571472,7.27,3794.5,3794.2,0.03193008]
[1717367572246,7.27,3795.1,3794.4,0.476]
[1717367572580,2.63494,3795.2,3794.5,2.63537]
[1717367572748,2.63494,3795.2,3794.6,0.476]
[1717367572944,2.63494,3795.2,3794.6,0.50793008]
[1717367573308,12.45,3795.4,3794.6,0.03193008]
[1717367573442,13.45260404,3795.4,3794.6,0.03193008]
[1717367574392,13.45260404,3795.4,3794.6,2.894]
[1717367575054,12.45,3795.4,3794.6,2.894]
[1717367575583,7.3960553,3795.5,3794.6,2.894]
[1717367579190,7.3960553,3795.5,3794.7,2.63525]
[1717367582691,7.3960553,3795.5,3795.0,2.4671]
[1717367582984,7.3960553,3795.5,3795.1,0.03112291]
[1717367583186,7.3960553,3795.5,3795.2,1.03693329]
[1717367583390,0.1260553,3795.5,3795.3,0.55]
[1717367583591,0.1260553,3795.5,3795.4,0.476]
[1717367583889,0.1260553,3795.5,3795.4,2.91682291]
[1717367584196,0.1260553,3795.5,3795.4,3.58308853]
[1717367584691,0.1260553,3795.5,3795.4,3.65708853]
[1717367584886,0.1260553,3795.5,3795.4,4.13308853]
[1717367585478,0.1260553,3795.5,3795.4,3.58308853]
[1717367586285,0.1260553,3795.5,3795.4,3.10708853]
[1717367586494,0.1260553,3795.5,3795.4,3.58308853]
[1717367586879,0.1260553,3795.5,3795.4,4.13308853]
[1717367587141,0.1260553,3795.5,3795.4,3.60698853]
[1717367587281,0.1260553,3795.5,3795.4,4.08298853]
[1717367589024,0.1260553,3795.5,3795.4,3.60698853]
[1717367589228,0.1260553,3795.5,3795.4,4.08298853]
[1717367589412,0.1260553,3795.5,3795.4,7.08298853]
[1717367589623,7.27,3797.0,3796.2,2.63421]
[1717367589780,7.27,3797.0,3796.2,3.11021]
[1717367589980,7.27,3797.0,3796.2,2.66492056]
[1717367590772,7.27,3797.4,3796.2,4.95622056]
[1717367590920,9.9034,3797.4,3796.2,5.50622056]
[1717367591260,7.27,3797.2,3796.2,5.98284262]
[1717367591497,7.27,3797.2,3796.2,6.53284262]
[1717367591652,7.27,3797.2,3796.2,5.50684262]
[1717367591851,7.27,3797.2,3796.2,3.21554262]
[1717367592158,2.9544,3797.1,3796.2,3.21554262]
[1717367592457,5.58803,3797.1,3796.2,3.21554262]
[1717367593461,2.63363,3797.1,3796.2,3.21554262]
[1717367594761,2.63363,3797.1,3796.2,3.69154262]
[1717367596528,2.63363,3797.1,3796.2,3.21554262]
[1717367596848,2.9689,3796.4,3796.2,0.03071056]
[1717367597150,2.9689,3796.4,3795.4,2.63473]
[1717367597151,2.9689,3796.4,3795.4,3.11073]
[1717367597513,2.9689,3796.4,3795.5,0.0294336]
[1717367597719,2.4929,3796.4,3795.5,0.0294336]
[1717367597915,2.4929,3796.4,3795.6,0.476]
[1717367598551,2.4929,3796.4,3795.7,0.0294336]
[1717367599530,2.4929,3796.4,3795.4,2.63473]
[1717367599531,2.4929,3796.4,3795.5,0.476]
[1717367599852,2.4929,3796.4,3795.6,0.0294336]
[1717367600452,2.4929,3796.4,3795.4,2.63473]
[1717367600631,2.4929,3796.4,3795.7,0.0294336]
[1717367600956,2.4929,3796.4,3795.4,2.63473]
[1717367601472,2.4929,3796.4,3795.5,0.0294336]
[1717367601823,2.63422,3796.2,3795.5,0.0294336]
[1717367602145,2.63422,3796.2,3795.6,0.0294336]
[1717367602345,2.63422,3796.2,3795.4,2.63473]
[1717367602549,2.63422,3796.2,3795.5,0.0294336]
[1717367605515,2.3728,3796.1,3795.5,0.0294336]
[1717367608238,2.63439,3796.0,3795.5,0.0294336]
[1717367608425,2.3728,3796.2,3795.5,0.0294336]
[1717367608625,2.3728,3796.0,3794.6,2.63527]
[1717367608879,9.6428,3796.0,3794.7,0.55]
[1717367609073,9.6428,3796.0,3794.7,0.57961276]
[1717367609423,2.63457,3795.7,3794.7,0.57961276]
[1717367609630,2.63457,3795.7,3794.8,0.56215828]
[1717367609842,2.63457,3795.7,3794.9,0.55]
[1717367620432,2.63457,3795.7,3795.0,0.50387657]
[1717367620814,12.27715,3796.0,3795.2,0.475]
[1717367621308,12.27715,3796.0,3795.3,0.02887657]
[1717367622554,12.27715,3796.0,3795.1,5.53537]
[1717367622857,12.27715,3796.0,3795.2,0.63741357]
[1717367623014,9.90435,3796.0,3795.3,2.63482]
[1717367623219,9.90435,3796.0,3795.3,3.10982]
[1717367623732,9.90435,3796.0,3795.4,0.02887657]
[1717367624042,2.5987467,3796.3,3795.4,0.02887657]
[1717367624251,2.5987467,3796.3,3795.5,0.37472336]
[1717367624759,2.5987467,3796.3,3795.6,0.02887657]
[1717367625823,0.1264467,3796.3,3795.9,2.6344]
[1717367626153,0.1264467,3796.3,3796.0,0.31094]
[1717367626816,0.1264467,3796.3,3796.1,0.475]
[1717367627358,0.1264467,3796.3,3796.1,3.10928]
[1717367627544,0.1264467,3796.3,3796.2,0.02869737]
[1717367627719,0.1264467,3796.3,3796.1,3.10928]